[Event "DFMM-LV 2023"]
[Site "Braunfels"]
[Date "2023.06.10"]
[Round "4.12"]
[White "Valkova, Angelika"]
[Black "Dirmeier, Carolin"]
[Result "1/2-1/2"]
[Annotator "TA"]
[ECO "A80"]
[WhiteElo "2062"]
[BlackElo "1941"]
[PlyCount "96"]
[EventDate "2023.06.09"]
[EventType "team-tourn"]
[EventCountry "GER"]
[SourceTitle "playchess.com"]
[Source "ChessBase"]
[SourceQuality "1"]
[TimeControl "40/5400+30:1800+30"]

{[%evp 9,96,59,120,109,135,115,98,99,101,102,110,96,100,96,162,106,192,133,83,77,56,0,8,15,184,198,312,322,299,301,354,367,437,440,403,370,460,329,511,520,508,493,623,503,494,283,277,0,0,0,0,0,0,0,0,0,0,0,388,0,0,0,0,0,0,0,0,0,0,0,0,0,0,0,8,8,8,8,131,0,0,0,30,0,139,143,187,0,0]} 1. d4 {[%emt 0:00:04]} f5 {[%emt 0:00:05]} 2. Nc3 {[%emt 0:00:14]} Nf6 {[%emt 0:01:05]} 3. Bg5 {[%emt 0:00:22]} e6 {[%emt 0:01:51]} 4. e4 {[%emt 0:00:24]} Be7 {[%emt 0:10:29]} 5. e5 {[%emt 0:06:00]} Ng8 {[%emt 0:07:19]} (5... Nd5 $14 6. Bxe7 Qxe7) 6. Be3 {[%emt 0:16:27] White has more active pieces. A80: Dutch Defence: Unusual White second moves.} d5 {[%emt 0:07:42]} 7. g4 {[%emt 0:10:05] [#]} f4 $146 {[%emt 0:29:59]} ({Predecessor:} 7... c6 8. Qd2 Qa5 9. h3 Na6 10. Nf3 Bd7 11. Rg1 f4 12. Bxf4 O-O-O 13. Bxa6 Qxa6 14. Bg5 {1-0 Garcia Martinez,S-Pena,G Cardenas/Matanzas/Santa Clara 1968 (14)}) 8. Bxf4 {[%emt 0:01:06] White is better.} c5 {[%emt 0:00:53]} 9. Nf3 {[%emt 0:10:53]} Nc6 {[%emt 0:03:56]} 10. Qd2 {[%emt 0:12:29]} cxd4 {[%emt 0:05:18]} 11. Nxd4 {[%emt 0:00:47]} Qb6 {[%emt 0:00:55]} (11... Nh6 $16) 12. Ndb5 {[%emt 0:10:04]} (12. Be3 $1 $18 Nxe5 13. Be2) 12... a6 {[%emt 0:15:53]} (12... Nh6 $16 {was necessary.}) 13. Na4 {[%emt 0:01:23]} (13. Nd6+ $18 Bxd6 14. exd6) 13... Qd8 $16 {[%emt 0:00:39]} 14. Nd4 $36 {[%emt 0:03:10][%mdl 2048] White has strong initiative.} Bd7 {[%emt 0:02:57]} 15. a3 {[%emt 0:05:18]} ({White should play} 15. O-O-O $14) 15... Rc8 {[%emt 0:03:01]} 16. Nb3 {[%emt 0:03:59]} d4 $2 {[%emt 0:04:44]} 17. Nac5 {[%emt 0:06:05]} (17. Nxd4 $2 Nxd4 18. Qxd4 Bc6 19. Qxd8+ Bxd8 $19) 17... Qb6 {[%emt 0:01:39]} (17... Nh6 $142 18. O-O-O (18. Nxb7 Qb6 $16) 18... Nf7) 18. Nxd7 $1 $18 {[%emt 0:01:56]} Kxd7 {[%emt 0:00:01]} 19. O-O-O {[%emt 0:00:36]} Ke8 {[%emt 0:00:59]} 20. Bg2 {[%emt 0:02:22]} (20. Nxd4 Rd8 $16) 20... Nh6 {[%emt 0:00:28]} 21. Bxh6 {[%emt 0:03:10]} (21. Nxd4 Nxd4 22. Qxd4 Qxd4 23. Rxd4 Rf8 $18) 21... gxh6 {[%emt 0:00:02]} 22. Bxc6+ {[%emt 0:00:26]} ({Less strong is} 22. Nxd4 Nxd4 23. Qxd4 Qxd4 24. Rxd4 Rc7 $18) 22... Rxc6 {[%emt 0:00:51]} 23. Qxd4 {[%emt 0:02:24]} Qxb3 {[%emt 0:00:42]} (23... Qxd4 $142 24. Nxd4 Rc5) 24. Qd7+ $1 {[%emt 0:00:06]} Kf7 {[%emt 0:00:17][%csl Gc6][%cal Rb3c2] [#]} 25. Qxc6 {[%emt 0:00:06][%mdl 512]} Qa2 {[%emt 0:00:30]} (25... Qxa3 26. Rd7) 26. Qxb7 {[%emt 0:01:27]} Rb8 {[%emt 0:00:28]} 27. Qf3+ {[%emt 0:01:34]} (27. Qxb8 $2 {gets mated.} Bg5+ 28. f4 Bxf4+ 29. Rd2 Qa1#) (27. Qe4 $142 Kg8 28. Rd7 Qxb2+ 29. Kd2 Qxa3 30. Ke2) 27... Kg8 {[%emt 0:00:29] ( -> ...Bg5+)} 28. Rd7 $2 {[%emt 0:00:47]} (28. Qe4 $18) 28... Bg5+ $11 {[%emt 0:00:32]} (28... Rf8 $5 29. Qb3 $8 (29. Qe4 $2 Rxf2 30. Qa8+ Bf8 $19) 29... Bg5+ 30. Kd1 Qb1+ 31. Ke2 Qxh1 $11) 29. Kd1 {[%emt 0:00:05][%cal Bc1d1,Bd1e2,Be2f1][%mdl 32]} Qb1+ {[%emt 0:00:22]} 30. Ke2 {[%emt 0:00:09] Intending Qf7+ and mate.} Qxc2+ {[%emt 0:00:13]} 31. Kf1 {[%emt 0:00:18] Qf7+ would kill now.} Rf8 {[%emt 0:00:38] Prevents Qf7+} 32. Qe2 {[%emt 0:00:45]} Qc6 {[%emt 0:00:27][%csl LRd7,LRh1][%cal Rc6h1]} 33. Qd3 $1 {[%emt 0:01:18][%csl Gd7][%cal Rd3h7]} Qxh1+ {[%emt 0:00:34]} 34. Ke2 {[%emt 0:00:02][%csl Gd7][%cal Rd3h7]} Rf7 {[%emt 0:00:53]} (34... Qxh2 $2 35. Qxh7#) 35. Rxf7 {[%emt 0:00:44]} Kxf7 {[%emt 0:00:01]} 36. Qxh7+ {[%emt 0:00:08]} Ke8 {[%emt 0:00:49] Threatens to win with ...Qd5.} 37. Qg8+ {[%emt 0:00:49]} Ke7 {[%emt 0:00:44] Hoping for ...Qe4+.} 38. Qh7+ {[%emt 0:00:27]} Ke8 {[%emt 0:00:02]} 39. Qg8+ {[%emt 0:00:13]} Kd7 {[%emt 0:00:26] aiming for ...Qe4+.} 40. Qh7+ {[%emt 0:00:39]} Kc6 {[%emt 0:00:57] And now ...Qd5 would win.} 41. Qd3 {[%emt 0:04:05]} Qd5 {[%emt 0:10:28] White must now prevent ...Qxd3+.} 42. Qxa6+ {[%emt 0:00:47]} Kd7 {[%emt 0:03:01]} 43. Qd3 {[%emt 0:10:40] Against} Kc6 {[%emt 0:02:55] [#]} (43... Bf4 $11) 44. Qc3+ {[%emt 0:03:03]} ({White must play} 44. Qxd5+ $1 $16 Kxd5 45. a4) 44... Kb6 {[%emt 0:08:14]} 45. Qb4+ {[%emt 0:01:22]} Kc7 {[%emt 0:06:00]} 46. Qc3+ {[%emt 0:00:44]} Kb7 {[%emt 0:00:06]} (46... Kb6 $11 {remains equal.}) 47. Qf3 $16 {[%emt 0:03:35]} Kc6 {[%emt 0:01:00] [#]} 48. Qc3+ {[%emt 0:00:11]} (48. a4 $1 $18) 48... Kb6 {[%emt 0:00:48] A brilliant game!   Weighted Error Value: White=0.49/Black=0.41} 1/2-1/2

[Event "DFMM-LV 2023"]
[Site "Braunfels"]
[Date "2023.06.10"]
[Round "4.13"]
[White "Ankerst, Milka"]
[Black "Gheng, Simona"]
[Result "0-1"]
[Annotator "TA"]
[ECO "B77"]
[WhiteElo "1923"]
[BlackElo "1918"]
[PlyCount "173"]
[EventDate "2023.06.09"]
[EventType "team-tourn"]
[EventCountry "GER"]
[SourceTitle "playchess.com"]
[Source "ChessBase"]
[SourceQuality "1"]
[TimeControl "40/5400+30:1800+30"]

{[%evp 25,173,88,102,22,20,-15,0,0,10,7,11,0,0,-21,-16,-11,0,-20,-22,-29,-24,-12,-22,-45,32,28,35,0,0,0,-1,-1,0,-34,0,-150,-151,-269,-256,-231,-147,-147,-147,-170,-37,-59,-37,-37,-37,-37,0,0,0,-70,-70,-70,-70,-162,-174,-163,-37,-38,-70,-130,-139,-223,-81,-79,-81,-196,-52,-80,-11,-80,0,0,0,0,0,0,0,0,0,0,0,-8,0,0,0,0,0,-5,0,-5,-6,-6,0,-6,-6,-13,-8,-14,0,-8,0,-58,-25,-65,-65,-127,-152,-148,-118,-152,-152,-164,-152,-130,0,-37,-8,-8,-16,-8,-13,-39,-39,-183,-39,-1501,-1720,-1591,-1511,-608,-981,-29959,-29970,-29976,-29977,-29989,-29976,-29984,-29985,-29990,-29991,-29991,-29992,-29992,-29993,-29997]} 1. e4 {[%emt 0:00:10]} c5 {[%emt 0:00:19]} 2. Nf3 {[%emt 0:00:19]} Nc6 {[%emt 0:00:20]} 3. d4 {[%emt 0:00:18]} cxd4 {[%emt 0:00:18]} 4. Nxd4 {[%emt 0:00:05]} d6 {[%emt 0:00:16]} 5. Nc3 {[%emt 0:00:51]} g6 {[%emt 0:01:37]} 6. Bc4 {[%emt 0:01:32]} Bg7 {[%emt 0:00:54]} 7. Be3 {[%emt 0:01:45]} Nf6 {[%emt 0:01:03]} 8. f3 {[%emt 0:01:39]} O-O {[%emt 0:03:17]} 9. Qd2 {[%emt 0:00:46]} a6 {[%emt 0:02:21]} 10. O-O-O {[%emt 0:00:52]} Qc7 {[%emt 0:03:24]} 11. Bb3 {[%emt 0:01:01]} Nxd4 {[%emt 0:06:18]} 12. Bxd4 {[%emt 0:00:30]} Be6 {[%emt 0:00:53]} 13. Kb1 {[%emt 0:01:31]} b5 {[%emt 0:01:19] [#]} 14. Be3 $146 {[%emt 0:04:03] B77: Sicilian Dragon: Yugoslav Attack, 9 Bc4 sidelines.} (14. h4 $16) ({Predecessor:} 14. h4 h5 15. g4 hxg4 16. h5 Bxb3 17. h6 Nxe4 18. fxe4 Bxd4 19. Qxd4 e5 20. Qf2 f5 21. axb3 f4 {0-1 Csontos,A (1938)-Goroshkov,M (2265) Nova Gorica HIT op 27th 2023 (6)}) 14... b4 $11 {[%emt 0:07:45]} 15. Ne2 {[%emt 0:08:52][%cal Bc3e2,Be2c1,Bc1d3][%mdl 32]} (15. Na4 $5 {[%cal Rd2b4]}) 15... Bxb3 {[%emt 0:00:57]} 16. cxb3 {[%emt 0:00:33] The position is equal.} ({Of course not} 16. axb3 a5 17. c3 Rfb8 $17) 16... Rfc8 {[%emt 0:00:40][%cal Od6d5]} 17. Rc1 {[%emt 0:02:29]} Qb7 {[%emt 0:00:17]} 18. Rxc8+ {[%emt 0:07:21]} Rxc8 {[%emt 0:00:07]} 19. Rc1 {[%emt 0:00:28]} Rxc1+ {[%emt 0:07:40]} 20. Nxc1 {[%emt 0:03:52]} Nd7 {[%emt 0:01:13]} 21. Nd3 {[%emt 0:01:10]} a5 {[%emt 0:00:35]} 22. Qc2 {[%emt 0:04:36]} h5 {[%emt 0:01:10]} 23. Qc4 {[%emt 0:03:49]} e6 {[%emt 0:04:00]} 24. a3 {[%emt 0:12:43]} Ne5 {[%emt 0:04:36]} (24... bxa3 $15 25. bxa3 d5 26. exd5 exd5) 25. Nxe5 $14 {[%emt 0:04:25]} Bxe5 {[%emt 0:00:55][%mdl 4096] Endgame KQB-KQB} 26. h3 {[%emt 0:02:36]} d5 {[%emt 0:02:17]} 27. exd5 {[%emt 0:01:18]} exd5 {[%emt 0:00:10]} 28. Qd3 {[%emt 0:01:34]} Bg7 {[%emt 0:07:12]} 29. Ka2 {[%emt 0:03:41]} Qc6 {[%emt 0:00:38]} 30. Kb1 {[%emt 0:04:21]} (30. Bd4 $11) 30... bxa3 $17 {[%emt 0:08:25]} 31. Bd4 {[%emt 0:07:25]} (31. bxa3 $17 Qf6 32. Kc2) 31... Bxd4 $19 {[%emt 0:02:38]} 32. Qxd4 {[%emt 0:00:03]} axb2 {[%emt 0:00:32]} 33. Kxb2 {[%emt 0:00:33] KQ-KQ} Qb5 {[%emt 0:00:23]} 34. Kc3 {[%emt 0:06:59]} Kf8 {[%emt 0:04:15]} (34... Qe2 $19 35. Qd2 Qxd2+ 36. Kxd2 Kg7) 35. g4 $15 {[%emt 0:03:17]} hxg4 {[%emt 0:04:21]} 36. hxg4 {[%emt 0:00:52]} Qc6+ {[%emt 0:06:58]} 37. Kd2 {[%emt 0:02:37]} f6 {[%emt 0:00:46]} 38. Qa7 {[%emt 0:02:59]} Qb5 {[%emt 0:01:05]} 39. Kc3 {[%emt 0:03:13]} (39. Qc7 $11) 39... Qb4+ {[%emt 0:01:33]} 40. Kc2 {[%emt 0:00:27]} d4 {[%emt 0:00:41]} 41. Qa8+ {[%emt 0:30:33]} (41. Qc7 $15) 41... Kg7 $19 {[%emt 0:30:14]} 42. Qc6 {[%emt 0:00:53] [#] Prevents Qc3+} d3+ $1 {[%emt 0:03:11][%mdl 512]} 43. Kxd3 $15 {[%emt 0:01:22]} Qxb3+ {[%emt 0:00:10]} 44. Ke4 {[%emt 0:00:17]} (44. Ke2 $1 $15) 44... Qb4+ $17 {[%emt 0:06:34]} 45. Ke3 {[%emt 0:01:09]} (45. Kd3 $17) 45... Qe1+ {[%emt 0:02:29]} (45... a4 $19 {has better winning chances. aiming for ...a3.} 46. Qc7+ Kf8) 46. Kd3 {[%emt 0:00:00]} Qe5 {[%emt 0:00:00] Wards off Qc7+} 47. Qa4 {[%emt 0:00:00] [#] Repels Qf4} (47. Qc4 $17) 47... Qd5+ {[%emt 0:00:00]} (47... Kh6 $1 $19 {[%cal Rh6g5] ...Kg5 would be deadly.} 48. Qa2 Qf4) 48. Ke3 {[%emt 0:00:00]} g5 {[%emt 0:00:00]} (48... Qc5+ $17 49. Kd3 Qd5+ 50. Ke2 Kf8) 49. Ke2 {[%emt 0:00:00]} (49. Kf2 $1 $11) 49... f5 {[%emt 0:00:00]} (49... Kf7 $17 50. Kf2 Qd2+ 51. Kf1 Ke7) 50. gxf5 $11 {[%emt 0:00:00]} Qxf5 {[%emt 0:00:00]} 51. Qc4 {[%emt 0:00:00]} Kf6 {[%emt 0:00:00]} 52. Kf2 {[%emt 0:00:00]} Qe5 {[%emt 0:00:00]} 53. Qa6+ {[%emt 0:00:00]} Kg7 {[%emt 0:00:00]} 54. Kg2 {[%emt 0:00:00]} Kf7 {[%emt 0:00:00]} 55. Kf2 {[%emt 0:00:00]} Ke7 {[%emt 0:00:00]} 56. Qa7+ {[%emt 0:00:00]} Kf6 {[%emt 0:00:00]} 57. Qa6+ {[%emt 0:00:00]} Kg7 {[%emt 0:00:00]} 58. Kg2 {[%emt 0:00:00]} Qc5 {[%emt 0:00:00]} 59. Qa8 {[%emt 0:00:00]} Qc2+ {[%emt 0:00:00]} 60. Kg3 {[%emt 0:00:00]} a4 {[%emt 0:00:00]} 61. Qa7+ {[%emt 0:00:08]} Kg6 {[%emt 0:00:00]} 62. Qe7 {[%emt 0:00:34]} Qc6 {[%emt 0:00:51]} (62... Qc4 {is interesting.} 63. Qe8+ Kf5 64. Qd7+ Ke5) 63. Qb4 {[%emt 0:01:01]} Qd7 {[%emt 0:01:20]} 64. Qc5 {[%emt 0:01:53]} Kh5 {[%emt 0:00:50]} 65. Qc1 {[%emt 0:00:56]} (65. Qf8 $11) 65... Qd6+ $15 {[%emt 0:00:31]} 66. Kg2 {[%emt 0:00:11]} a3 $1 {[%emt 0:01:08]} 67. Qh1+ {[%emt 0:00:28]} (67. Qc2 $15) 67... Kg6 $17 {[%emt 0:00:08] Black is more active.} 68. Qb1+ {[%emt 0:00:08]} Kf6 {[%emt 0:01:25] Threatens to win with ...Qd2+.} 69. Qa1+ {[%emt 0:00:21]} Kf7 {[%emt 0:00:16]} 70. Qa2+ {[%emt 0:00:12]} Kf8 {[%emt 0:00:08]} 71. Qc2 {[%emt 0:00:17]} Qe7 {[%emt 0:00:57]} ({Don't blunder} 71... Qd5 $2 72. Qc8+ Ke7 73. Qc7+ Ke6 74. Qc8+ Kf7 75. Qc7+ Kg6 76. Qb6+ Kf5 77. Qb1+ Ke6 78. Qb6+ Kf5 79. Qb1+ Ke6 80. Qb6+ Kf5 $19) (71... Ke8 $17 {[%cal Og5g4] And now ...g4! would win.} 72. Qe4+ Kf8 73. Qf5+ Kg7) 72. Qc8+ {[%emt 0:00:29]} Kg7 {[%emt 0:01:14]} 73. Qc3+ {[%emt 0:00:11]} Kg6 {[%emt 0:00:26] ( -> ...Qe2+)} 74. Qc2+ {[%emt 0:01:37]} Kh6 {[%emt 0:00:23]} 75. Qa2 {[%emt 0:01:11] Prevents Qe6} Kh5 {[%emt 0:02:55]} 76. Qc2 {[%emt 0:00:41]} ({White should try} 76. Qg8 $15) 76... Qg7 {[%emt 0:00:25]} ({Black should play} 76... Qf7 $19 {...a2 is the strong threat.} 77. Qe4 a2) 77. Kg3 $2 {[%emt 0:03:31][%mdl 8192] [#]} (77. Qf5 $15) 77... Qe5+ $1 $19 {[%emt 0:02:34]} 78. Kh3 {[%emt 0:00:03]} Qe6+ {[%emt 0:02:36]} 79. Kg3 {[%emt 0:00:43]} Kh6 {[%emt 0:00:27]} ({And not} 79... a2 80. Qh7+ Qh6 81. Qf7+ Qg6 82. Qxa2 Qd6+ 83. Kg2 $11) 80. Qh2+ {[%emt 0:00:56]} Kg7 {[%emt 0:00:04] Black mates.} 81. Qc2 {[%emt 0:01:19]} a2 {[%emt 0:00:16]} 82. Qc3+ {[%emt 0:00:16]} Kg6 {[%emt 0:00:17]} 83. Qc2+ {[%emt 0:00:14]} Kf6 {[%emt 0:00:06]} 84. Qc1 {[%emt 0:02:04]} Qe5+ {[%emt 0:00:12]} 85. Kg2 {[%emt 0:00:16]} a1=Q {[%emt 0:00:40]} 86. Qc6+ {[%emt 0:00:03]} Qe6 {[%emt 0:00:20]} 87. Qc7 {[%emt 0:02:28] Weighted Error Value: White=0.29 (precise) /Black=0.29 (precise) .  Loses game:     	White=1     	---        Missed win:     	---       	---        Mistake:       	White=11    	Black=9      Inaccurate:     	White=6     	Black=4      OK:         	White=21    	Black=17     Best:        	White=5     	Black=4      Strong:       	---       	Black=2      Brilliant:      	---       	---} 0-1

[Event "DFMM-LV 2023"]
[Site "Braunfels"]
[Date "2023.06.10"]
[Round "4.14"]
[White "Heil, Marina"]
[Black "Spiel, Marianne"]
[Result "1-0"]
[Annotator "NA RC COMBH"]
[ECO "C02"]
[WhiteElo "1866"]
[BlackElo "1840"]
[PlyCount "113"]
[EventDate "2023.06.09"]
[EventType "team-tourn"]
[EventCountry "GER"]
[SourceTitle "playchess.com"]
[Source "ChessBase"]
[SourceQuality "1"]
[TimeControl "40/5400+30:1800+30"]

1. e4 {[%emt 0:00:04]} e6 {[%emt 0:00:05]} 2. d4 {[%emt 0:00:05]} d5 {[%emt 0:00:05]} 3. e5 {[%emt 0:00:06]} c5 {[%emt 0:00:06]} 4. c3 {[%emt 0:00:10]} Bd7 {[%emt 0:00:18]} 5. Nf3 {[%emt 0:00:10]} Nc6 {[%emt 0:00:10]} 6. Bd3 {[%emt 0:02:00]} Qb6 {[%emt 0:01:28]} 7. O-O {[%emt 0:01:16]} cxd4 {[%emt 0:05:19]} 8. Re1 {[%emt 0:00:10]} dxc3 {[%emt 0:11:57]} 9. Nxc3 {[%emt 0:00:11]} Nge7 {[%emt 0:00:31]} 10. h4 {[%emt 0:00:42]} a6 {[%emt 0:05:00]} 11. h5 {[%emt 0:00:42]} g6 {[%emt 0:13:44]} 12. Ng5 {[%emt 0:21:50]} Bg7 {[%emt 0:21:17]} 13. Na4 {[%emt 0:10:26]} Qc7 {[%emt 0:03:20]} 14. f4 {[%emt 0:02:06]} O-O {[%emt 0:03:58]} 15. hxg6 {[%emt 0:05:31]} fxg6 {[%emt 0:02:55]} 16. g3 {[%emt 0:09:29]} Nb4 {[%emt 0:12:06]} 17. Bb1 {[%emt 0:01:58]} Rac8 {[%emt 0:00:53]} 18. Nc3 {[%emt 0:03:49]} Nbc6 {[%emt 0:04:23]} 19. Kg2 {[%emt 0:00:56]} Nd8 {[%emt 0:02:27]} 20. Rh1 {[%emt 0:01:12]} Bc6 {[%emt 0:00:56]} 21. Bd2 {[%emt 0:04:53]} h6 {[%emt 0:02:08]} 22. Nf3 {[%emt 0:00:36]} Nf7 {[%emt 0:00:21]} 23. Nd4 {[%emt 0:01:04]} Bd7 {[%emt 0:00:57]} 24. Bd3 {[%emt 0:00:50]} Nf5 {[%emt 0:00:35]} 25. Nxf5 {[%emt 0:01:57]} gxf5 {[%emt 0:00:02]} 26. Ne2 {[%emt 0:01:39]} Qb6 {[%emt 0:01:10]} 27. Bc3 {[%emt 0:01:50]} Bb5 {[%emt 0:00:45]} 28. Nd4 {[%emt 0:02:04]} Bxd3 {[%emt 0:00:14]} 29. Qxd3 {[%emt 0:00:06]} Rc4 {[%emt 0:00:59]} 30. a4 {[%emt 0:01:00]} a5 {[%emt 0:00:13]} 31. Ra3 {[%emt 0:04:27]} Rfc8 {[%emt 0:00:22]} 32. Rha1 {[%emt 0:01:45]} Qa6 {[%emt 0:02:06]} 33. Rb3 {[%emt 0:01:53]} Nd8 {[%emt 0:00:36]} 34. Nb5 {[%emt 0:01:28]} Nf7 {[%emt 0:00:32]} 35. Nd4 {[%emt 0:01:21]} Nd8 {[%emt 0:00:11]} 36. Rb5 {[%emt 0:00:22]} b6 {[%emt 0:01:06]} 37. Rb3 {[%emt 0:00:13]} Qa7 {[%emt 0:00:27]} 38. Nb5 {[%emt 0:00:10]} Qd7 {[%emt 0:01:41]} 39. Nd6 {[%emt 0:01:58]} R4c6 {[%emt 0:00:39]} 40. Nxc8 {[%emt 0:00:33]} Qxc8 {[%emt 0:00:12]} 41. Qe3 {[%emt 0:32:52]} Qc7 {[%emt 0:09:56]} 42. Bd4 {[%emt 0:00:00]} Rc2+ {[%emt 0:01:07]} 43. Kg1 {[%emt 0:00:00]} Qf7 {[%emt 0:04:47]} 44. Qd3 {[%emt 0:00:00]} Rc4 {[%emt 0:00:29]} 45. Rxb6 {[%emt 0:00:00]} Nc6 {[%emt 0:00:59]} 46. Bc3 {[%emt 0:00:00]} Bf8 {[%emt 0:00:13]} 47. Rb5 {[%emt 0:00:00]} Qg6 {[%emt 0:01:28]} 48. Kf1 {[%emt 0:00:00]} Qg4 {[%emt 0:04:38]} 49. Ke1 {[%emt 0:00:00]} Nb4 {[%emt 0:05:15]} 50. Bxb4 {[%emt 0:00:16]} Bxb4+ {[%emt 0:00:16]} 51. Kf2 {[%emt 0:00:41]} Qh3 {[%emt 0:04:43]} 52. Kf3 {[%emt 0:06:28]} Qg4+ {[%emt 0:00:12]} 53. Kg2 {[%emt 0:00:27]} Re4 {[%emt 0:02:36]} 54. Rf1 {[%emt 0:13:44]} Qh5 {[%emt 0:02:25]} 55. Rf2 {[%emt 0:00:00]} Be1 {[%emt 0:00:15]} 56. Rc2 {[%emt 0:00:00]} d4 {[%emt 0:01:22]} 57. Rb8+ {[%emt 0:00:00]} 1-0

[Event "DFMM-LV 2023"]
[Site "Braunfels"]
[Date "2023.06.10"]
[Round "4.15"]
[White "Braeuer, Vanessa"]
[Black "Roesler, Hannah Clara"]
[Result "1-0"]
[Annotator "NA RC COMBH"]
[ECO "B27"]
[WhiteElo "1819"]
[BlackElo "1748"]
[PlyCount "79"]
[EventDate "2023.06.09"]
[EventType "team-tourn"]
[EventCountry "GER"]
[SourceTitle "playchess.com"]
[Source "ChessBase"]
[SourceQuality "1"]
[TimeControl "40/5400+30:1800+30"]

1. e4 {[%emt 0:00:02]} c5 {[%emt 0:00:03]} 2. Nf3 {[%emt 0:00:03]} g6 {[%emt 0:00:07]} 3. Nc3 {[%emt 0:01:43]} Bg7 {[%emt 0:01:23]} 4. h4 {[%emt 0:00:09]} h5 {[%emt 0:01:27]} 5. Bc4 {[%emt 0:00:29]} Nc6 {[%emt 0:02:04]} 6. d3 {[%emt 0:00:29]} Nf6 {[%emt 0:00:53]} 7. Bg5 {[%emt 0:02:36]} a6 {[%emt 0:03:29]} 8. a4 {[%emt 0:03:45]} d6 {[%emt 0:02:39]} 9. Qd2 {[%emt 0:01:19]} O-O {[%emt 0:05:34]} 10. Bh6 {[%emt 0:00:25]} Be6 {[%emt 0:01:15]} 11. Bxe6 {[%emt 0:02:10]} fxe6 {[%emt 0:00:06]} 12. Qg5 {[%emt 0:00:35]} Qe8 {[%emt 0:04:49]} 13. Bxg7 {[%emt 0:03:49]} Kxg7 {[%emt 0:00:06]} 14. Nh2 {[%emt 0:02:56]} Nd4 {[%emt 0:03:26]} 15. Rc1 {[%emt 0:05:58]} Qf7 {[%emt 0:04:34]} 16. Nd1 {[%emt 0:05:06]} d5 {[%emt 0:04:42]} 17. f3 {[%emt 0:19:06]} Rac8 {[%emt 0:03:11]} 18. Qe5 {[%emt 0:01:22]} Nc6 {[%emt 0:04:59]} 19. Qg3 {[%emt 0:00:29]} Nb4 {[%emt 0:02:11]} 20. O-O {[%emt 0:01:35]} d4 {[%emt 0:05:18]} 21. f4 {[%emt 0:02:27]} c4 {[%emt 0:03:27]} 22. Nf2 {[%emt 0:01:22]} c3 {[%emt 0:07:24]} 23. bxc3 {[%emt 0:00:24]} Rxc3 {[%emt 0:00:46]} 24. Nf3 {[%emt 0:00:21]} Rd8 {[%emt 0:06:11]} 25. Ng5 {[%emt 0:03:23]} Qg8 {[%emt 0:01:28]} 26. f5 {[%emt 0:05:51]} exf5 {[%emt 0:02:56]} 27. exf5 {[%emt 0:00:18]} Rdc8 {[%emt 0:00:52]} 28. Nge4 {[%emt 0:04:58]} Rxc2 {[%emt 0:06:10]} 29. Nxf6 {[%emt 0:02:00]} exf6 {[%emt 0:02:21]} 30. Rxc2 {[%emt 0:01:04]} Rxc2 {[%emt 0:03:01]} 31. Qxg6+ {[%emt 0:00:06]} Kh8 {[%emt 0:00:51]} 32. Qh6+ {[%emt 0:01:33]} Qh7 {[%emt 0:00:05]} 33. Qxf6+ {[%emt 0:01:50]} Qg7 {[%emt 0:00:12]} 34. Qd8+ {[%emt 0:00:42]} Kh7 {[%emt 0:00:18]} 35. f6 {[%emt 0:00:23]} Qg6 {[%emt 0:02:22]} 36. Qxd4 {[%emt 0:04:02]} Nc6 {[%emt 0:03:28]} 37. Qe4 {[%emt 0:01:57]} b5 {[%emt 0:03:27]} 38. f7 {[%emt 0:07:28]} Qxe4 {[%emt 0:00:45]} 39. Nxe4 {[%emt 0:00:12]} bxa4 {[%emt 0:00:46]} 40. f8=Q {[%emt 0:16:03]} 1-0